fUSD/lending_fUSD_20260424
["ID","MTS","AMOUNT","RATE_DAILY","PERIOD"]
[421076184,1776973847244,-500.0,8.219e-05,2]
[421076185,1776973847254,-500.0,8.219e-05,2]
[421076186,1776973847264,-379.89913487,8.219e-05,2]
[421076187,1776973847274,-500.0,8.219e-05,2]
[421076188,1776973847285,-500.0,8.219e-05,2]
[421076189,1776973847295,-749.0,8.219e-05,2]
[421076190,1776973847306,-500.0,8.219e-05,2]
[421076191,1776973847317,-500.0,8.219e-05,2]
[421076192,1776973847327,-500.0,8.219e-05,2]
[421076193,1776973847337,-500.0,8.219e-05,2]
[421076194,1776973847347,-500.0,8.219e-05,2]
[421076195,1776973847358,-500.0,8.219e-05,2]
[421076196,1776973847367,-500.0,8.219e-05,2]
[421076197,1776973847378,-500.0,8.219e-05,2]
[421076198,1776973847389,-500.0,8.219e-05,2]
[421076199,1776973847399,-749.0,8.219e-05,2]
[421076200,1776973847408,-500.0,8.219e-05,2]
[421076201,1776973847418,-500.0,8.219e-05,2]
[421076203,1776973847427,-204.0,8.219e-05,2]
[421076205,1776973847437,-500.0,8.219e-05,2]
[421076206,1776973847447,-500.0,8.219e-05,2]
[421076207,1776973847457,-500.0,8.219e-05,2]
[421076208,1776973847468,-500.0,8.219e-05,2]
[421076209,1776973847480,-500.0,8.219e-05,2]
[421076210,1776973847491,-500.0,8.219e-05,2]
[421076211,1776973847500,-500.0,8.219e-05,2]
[421076212,1776973847511,-500.0,8.219e-05,2]
[421076213,1776973847520,-749.0,8.219e-05,2]
[421076214,1776973847530,-500.0,8.219e-05,2]
[421076215,1776973847539,-486.36047331,8.219e-05,2]
[421076216,1776973847549,-500.0,8.219e-05,2]
[421076217,1776973847559,-502.89821104,8.219e-05,2]
[421076218,1776973847570,-500.0,8.219e-05,2]
[421076219,1776973847581,-586.24658645,8.219e-05,2]
[421076220,1776973847591,-749.0,8.219e-05,2]
[421076221,1776973847606,-749.0,8.219e-05,2]
[421076222,1776973847616,-749.0,8.219e-05,2]
[421076223,1776973847628,-749.0,8.219e-05,2]
[421076224,1776973847637,-749.26976104,8.219e-05,2]
[421076225,1776973847646,-500.0,8.219e-05,2]
[421076226,1776973847656,-280.0,8.219e-05,2]
[421076227,1776973847666,-153.84497306,8.222e-05,2]
[421076228,1776973847676,-150.0,8.225e-05,2]
[421076229,1776973847686,-150.0,8.236e-05,2]
[421076230,1776973847696,-286.0,8.244e-05,2]
[421076231,1776973848220,-1680.0,8.244e-05,2]
[421076232,1776973848230,-500.0,8.245e-05,2]
[421076233,1776973848240,-250.0,8.245e-05,2]
[421076234,1776973848250,-2500.0,8.245e-05,2]
[421076235,1776973848259,-2500.0,8.245e-05,2]
[421076236,1776973848268,-2500.0,8.245e-05,2]
[421076237,1776973848278,-2500.0,8.245e-05,2]
[421076238,1776973848287,-5000.0,8.245e-05,2]
[421076239,1776973848296,-5000.0,8.245e-05,2]
[421076240,1776973848305,-5000.0,8.245e-05,2]
[421076241,1776973848315,-904.80838352,8.245e-05,2]
[421076242,1776973848323,-300.0,8.245e-05,2]
[421076243,1776973848333,-300.0,8.245e-05,2]
[421076244,1776973848342,-300.0,8.245e-05,2]
[421076245,1776973848352,-300.0,8.245e-05,2]
[421076246,1776973848363,-250.0,8.245e-05,2]
[421076247,1776973848372,-300.0,8.245e-05,2]
[421076248,1776973848383,-150.0,8.245e-05,2]
[421076249,1776973848392,-300.0,8.245e-05,2]
[421076250,1776973848402,-2500.0,8.245e-05,2]
[421076251,1776973848412,-150.0,8.269e-05,2]
[421076252,1776973848421,-500.0,8.313e-05,2]
[421076253,1776973848430,-500.0,8.313e-05,2]
[421076254,1776973848439,-500.0,8.313e-05,2]
[421076255,1776973848449,-5976.17379689,8.319e-05,2]
[421076256,1776973848458,-151.0,8.327e-05,2]
[421076257,1776973848467,-155.17433017,8.329e-05,2]
[421076258,1776973848477,-150.0,8.329e-05,2]
[421076259,1776973848487,-150.0,8.329e-05,2]
[421076260,1776973848496,-250.34116381,8.329e-05,2]
[421076261,1776973848505,-150.0,8.329e-05,2]
[421076262,1776973848515,-150.0,8.329e-05,2]
[421076263,1776973848524,-150.0,8.329e-05,2]
[421076264,1776973848534,-150.0,8.329e-05,2]
[421076265,1776973848543,-150.0,8.329e-05,2]
[421076266,1776973848553,-207.68652229,8.329e-05,2]
[421076267,1776973848562,-270.20796519,8.329e-05,2]
[421076268,1776973848571,-1563.37047602,8.329e-05,2]
[421076269,1776973848581,-500.0,8.33e-05,2]
[421076270,1776973848590,-478.0,8.362e-05,2]
[421076271,1776973848600,-150.0,8.4e-05,2]
[421076272,1776973848610,-10871.20993581,8.43e-05,2]
[421076273,1776973848619,-492.68,8.493e-05,2]
[421076274,1776973848628,-500.0,8.493e-05,2]
[421076275,1776973848638,-503.9209333,8.741e-05,2]
[421076276,1776973848647,-492.68,8.767e-05,2]
[421076277,1776973848657,-500.0,8.767e-05,2]
[421076278,1776973848666,-255.0,8.8e-05,2]
[421076279,1776973848676,-1004.31449021,8.853e-05,2]
[421076280,1776973848685,-1000.0,8.853e-05,2]
[421076281,1776973848694,-1022.06145725,8.861e-05,2]
[421076282,1776973848703,-150.99,8.864e-05,2]
[421076283,1776973848712,-2421.97,8.864e-05,2]
[421076284,1776973848721,-299.99,8.864e-05,2]
[421076285,1776973848730,-2671.22,8.864e-05,2]
[421076286,1776973848740,-999.99,8.864e-05,2]
[421076287,1776973848749,-1527.76,8.864e-05,2]
[421076288,1776973848758,-319.53707917,8.889e-05,2]
[421076289,1776973848768,-500.0,8.889e-05,2]
[421076290,1776973848778,-500.0,8.889e-05,2]
[421076291,1776973848787,-500.0,8.889e-05,2]
[421076292,1776973848796,-500.0,8.889e-05,2]
[421076293,1776973848806,-155.0,8.929e-05,2]
[421076294,1776973848817,-578.20924308,8.932e-05,2]
[421076295,1776973848827,-9552.16786547,8.932e-05,2]
[421076296,1776973848836,-721.12765535,8.932e-05,2]
[421076297,1776973848845,-200.0,8.932e-05,2]
[421076298,1776973848854,-500.0,8.932e-05,2]
[421076299,1776973848863,-1428.38747117,8.932e-05,2]
[421076300,1776973848872,-743.50770149,8.932e-05,2]
[421076301,1776973848882,-151.0,8.932e-05,2]
[421076302,1776973848892,-1000.0,8.932e-05,2]
[421076303,1776973848901,-1000.0,8.932e-05,2]
[421076304,1776973848910,-790.32842599,8.932e-05,2]
[421076305,1776973848920,-174.61919141,8.932e-05,2]
[421076306,1776973848930,-254.93285448,8.932e-05,2]
[421076307,1776973848941,-12879.78568906,8.948e-05,2]
[421076308,1776973848951,-160.0,8.969e-05,2]
[421076309,1776973848961,-606.705093,8.969e-05,2]
[421076310,1776973848970,-1053.410186,8.969e-05,2]
[421076311,1776973848980,-459.59944,8.969e-05,2]
[421076312,1776973848989,-160.0,8.969e-05,2]
[421076313,1776973848999,-764.564279,8.969e-05,2]
[421076314,1776973849009,-1369.128558,8.969e-05,2]
[421076315,1776973849018,-160.0,8.969e-05,2]
[421076316,1776973849027,-607.039765,8.969e-05,2]
[421076317,1776973849046,-1054.079531,8.969e-05,2]
[421076318,1776973849057,-189.086393,8.969e-05,2]
[421076319,1776973849067,-9905.5980765,8.987e-05,2]
[421076320,1776973849077,-500.0,8.987e-05,2]
[421076321,1776973849086,-153.4004789,8.993e-05,2]
[421076322,1776973849096,-5072.76648835,9.04e-05,2]
[421076323,1776973849106,-492.68,9.041e-05,2]
[421076324,1776973849116,-500.0,9.041e-05,2]
[421076325,1776973849126,-10272.10520533,9.042e-05,2]
[421076326,1776973849137,-500.0,9.042e-05,2]
[421076327,1776973849147,-151.0,9.042e-05,2]
[421076328,1776973849157,-2351.0,9.069e-05,2]
[421076329,1776973849167,-10652.17309792,9.097e-05,2]
[421076330,1776973849177,-500.0,9.097e-05,2]
[421076331,1776973849187,-150.0,9.123e-05,5]
[421076332,1776973849196,-423.0,9.123e-05,5]
[421076333,1776973849206,-9034.77727858,9.152e-05,2]
[421076334,1776973849216,-500.0,9.152e-05,2]
[421076335,1776973849226,-500.0,9.207e-05,2]
[421076336,1776973849235,-500.0,9.262e-05,2]
[421076337,1776973849245,-492.7,9.315e-05,2]
[421076338,1776973849255,-500.0,9.315e-05,2]
[421076339,1776973849265,-500.0,9.317e-05,2]
[421076340,1776973849274,-500.0,9.372e-05,2]
[421076341,1776973849284,-405.375473,9.381e-05,2]
[421076342,1776973849293,-405.375473,9.381e-05,2]
[421076343,1776973849303,-405.375473,9.381e-05,2]
[421076344,1776973849313,-405.375473,9.381e-05,2]
[421076345,1776973849322,-827.325126,9.417e-05,2]
[421076346,1776973849332,-208.908836,9.417e-05,2]
[421076347,1776973849342,-1042.587653,9.417e-05,2]
[421076348,1776973849352,-827.781498,9.417e-05,2]
[421076349,1776973849361,-500.0,9.427e-05,2]
[421076350,1776973849370,-200.0,9.48e-05,2]
[421076351,1776973849380,-1481.23780761,9.48e-05,2]
[421076352,1776973849390,-771.01748645,9.48e-05,2]
[421076353,1776973849399,-156.587,9.48e-05,2]
[421076354,1776973849409,-181.08010149,9.48e-05,2]
[421076355,1776973849419,-500.0,9.482e-05,2]
[421076356,1776973849428,-150.0,9.589e-05,2]
[421076357,1776973849438,-500.0,9.589e-05,2]
[421076358,1776973849447,-433.0,9.68e-05,2]
[421076359,1776973849456,-562.2908788,9.853e-05,2]
[421076360,1776973849466,-500.0,9.863e-05,2]
[421076361,1776973849476,-3292.0,9.976e-05,2]
[421076362,1776973849485,-223.173544,9.991e-05,2]
[421076363,1776973849495,-223.173544,9.991e-05,2]
[421076364,1776973849504,-223.173544,9.991e-05,2]
[421076365,1776973849513,-223.173544,9.991e-05,2]
[421076366,1776973849522,-5032.0246,9.991e-05,2]
[421076367,1776973849531,-16633.95622793,0.0001,2]
[421076368,1776973849541,-406.83055348,0.0001,2]
[421076369,1776973849551,-823.95996111,0.0001,2]
[421076370,1776973849560,-908.8071192,0.0001,2]
[421076371,1776973849570,-925.19275933,0.0001,2]
[421076372,1776973849579,-535.08862933,0.0001,2]
[421076373,1776973849589,-2674.61322234,0.0001,2]
[421076374,1776973849598,-1961.438358,0.0001,2]
[421076375,1776973849608,-1743.42208886,0.0001,2]
[421076376,1776973849617,-2222.17450541,0.0001,2]
[421076377,1776973849627,-300.03479464,0.0001,2]
[421076378,1776973849636,-200.0,0.0001,2]
[421076379,1776973849646,-500.0,0.0001,2]
[421076380,1776973849655,-500.0,0.0001,2]
[421076381,1776973849664,-500.0,0.0001,2]
[421076382,1776973849675,-387.94217574,0.0001,2]
[421076383,1776973849685,-151.0,0.0001,2]
[421076384,1776973849694,-151.0,0.0001,2]
[421076385,1776973849703,-151.0,0.0001,2]
[421076386,1776973849713,-151.0,0.0001,2]
[421076387,1776973849723,-151.0,0.0001,2]
[421076388,1776973849732,-151.0,0.0001,2]
[421076389,1776973849741,-151.0,0.0001,2]
[421076390,1776973849750,-151.0,0.0001,2]
[421076391,1776973849759,-151.0,0.0001,2]
[421076392,1776973849769,-151.0,0.0001,2]
[421076393,1776973849779,-151.0,0.0001,2]
[421076394,1776973849788,-151.0,0.0001,2]
[421076395,1776973849798,-151.0,0.0001,2]
[421076396,1776973849807,-151.0,0.0001,2]
[421076397,1776973849817,-151.0,0.0001,2]
[421076398,1776973849826,-151.0,0.0001,2]
[421076399,1776973849836,-151.0,0.0001,2]
[421076400,1776973849845,-151.0,0.0001,2]
[421076401,1776973849856,-151.0,0.0001,2]
[421076402,1776973849866,-151.0,0.0001,2]
[421076403,1776973849875,-151.0,0.0001,2]
[421076404,1776973849885,-151.0,0.0001,2]
[421076405,1776973849895,-151.0,0.0001,2]
[421076406,1776973849905,-500.0,0.0001,2]
[421076407,1776973849914,-151.0,0.0001,2]
[421076408,1776973849924,-500.0,0.0001,2]
[421076409,1776973849935,-151.0,0.0001,2]
[421076410,1776973849944,-500.0,0.0001,2]
[421076411,1776973849953,-868.78901485,0.0001,2]
[421076412,1776973849963,-151.0,0.0001,2]
[421076413,1776973849973,-500.0,0.0001,2]
[421076414,1776973849982,-151.0,0.0001,2]
[421076415,1776973849992,-500.0,0.0001,2]
[421076416,1776973850002,-151.0,0.0001,2]
[421076417,1776973850011,-500.0,0.0001,2]
[421076418,1776973850020,-90.58801572,0.0001,2]
[421076419,1776974111339,150.0,4.5e-05,120]
[421076425,1776974741035,-150.0,7.2e-05,2]
[421076426,1776974741060,-62.27602,7.2e-05,2]
[421076430,1776974907617,-300.0,7.199e-05,2]
[421076431,1776974907641,-245.0,7.199e-05,2]
[421076432,1776974907664,-250.0,7.199e-05,2]
[421076433,1776974907688,-87.72398,7.2e-05,2]
[421076434,1776974907710,-150.0,7.2e-05,2]
[421076435,1776974907733,-150.0,7.2e-05,2]
[421076436,1776974907755,-150.0,7.2e-05,2]
[421076437,1776974907777,-150.0,7.2e-05,2]
[421076438,1776974907799,-150.0,7.2e-05,2]
[421076439,1776974907821,-150.0,7.2e-05,2]
[421076440,1776974907849,-150.0,7.2e-05,2]
[421076441,1776974907872,-150.0,7.2e-05,2]
[421076442,1776974907896,-150.0,7.2e-05,2]
[421076443,1776974907919,-166.05983851,7.2e-05,2]
[421076444,1776974907942,-150.0,7.2e-05,2]
[421076445,1776974907967,-150.0,7.2e-05,2]
[421076446,1776974907990,-250.0,7.269e-05,2]
[421076447,1776974908012,-150.0,7.3e-05,2]
[421076448,1776974908035,-150.0,7.314e-05,2]
[421076449,1776974908059,-150.0,7.333e-05,2]
[421076450,1776974908088,-150.0,7.36e-05,2]
[421076451,1776974908110,-150.0,7.4e-05,2]
[421076452,1776974908133,-150.0,7.4e-05,2]
[421076453,1776974908157,-150.0,7.4e-05,2]
[421076454,1776974908180,-150.0,7.429e-05,2]
[421076455,1776974908202,-150.0,7.467e-05,2]
[421076456,1776974908224,-150.0,7.467e-05,2]
[421076457,1776974908246,-150.0,7.5e-05,2]
[421076458,1776974908268,-150.0,7.52e-05,2]
[421076459,1776974908291,-150.0,7.543e-05,2]
[421076460,1776974908311,-197.0,7.571e-05,2]
[421076461,1776974908335,-212.0,7.582e-05,2]
[421076462,1776974908357,-150.0,7.6e-05,2]
[421076463,1776974908379,-150.0,7.6e-05,2]
[421076464,1776974908401,-150.0,7.6e-05,2]
[421076465,1776974908426,-150.0,7.6e-05,2]
[421076466,1776974908449,-150.0,7.657e-05,2]
[421076467,1776974908471,-150.0,7.68e-05,2]
[421076468,1776974908493,-150.0,7.7e-05,2]
[421076469,1776974908515,-150.0,7.733e-05,2]
[421076470,1776974908537,-150.0,7.733e-05,2]
[421076471,1776974908559,-150.0,7.771e-05,2]
[421076472,1776974908581,-150.0,7.8e-05,2]
[421076473,1776974908603,-150.0,7.8e-05,2]
[421076474,1776974908626,-2200.0,7.8e-05,2]
[421076475,1776974908649,-150.0,7.84e-05,2]
[421076476,1776974908670,-182.23696432,7.848e-05,2]
[421076477,1776974908694,-1200.0,7.856e-05,2]
[421076478,1776974908717,-714.97921717,7.857e-05,2]
[421076479,1776974952740,-3982.11878283,7.857e-05,2]
[421076480,1776974952763,-376.65,7.857e-05,2]
[421076481,1776974952785,-250.0,7.862e-05,2]
[421076482,1776974952807,-150.0,7.867e-05,2]
[421076483,1776974952830,-150.0,7.886e-05,2]
[421076484,1776974952854,-394.56939458,7.888e-05,2]
[421076485,1776974952885,-300.0,7.899e-05,2]
[421076486,1776974952910,-150.0,7.9e-05,2]
[421076487,1776974952936,-4500.0,7.9e-05,2]
[421076488,1776974952959,-150.0,7.9e-05,2]
[421076489,1776974952983,-150.0,7.907e-05,2]
[421076490,1776974953009,-896.66182259,7.908e-05,2]
[421076496,1776975032098,-781.95418243,7.907e-05,2]
[421076497,1776975038972,-418.04581757,7.907e-05,2]
[421076498,1776975038982,-300.0,7.907e-05,2]
[421076499,1776975038991,-253.0,7.907e-05,2]
[421076500,1776975039000,-46696.69458326,7.908e-05,2]
[421076501,1776975039010,-2516.9231,7.918e-05,2]
[421076502,1776975039020,-976.924,7.918e-05,2]
[421076503,1776975039029,-250.0,7.919e-05,2]
[421076504,1776975039043,-500.0,7.993e-05,2]
[421076505,1776975039053,-500.42337708,7.993e-05,2]
[421076506,1776975039062,-152.00189941,8e-05,2]
[421076507,1776975039072,-150.0,8e-05,2]
[421076508,1776975039081,-150.0,8e-05,2]
[421076509,1776975039091,-150.0,8e-05,2]
[421076510,1776975039101,-150.0,8e-05,2]
[421076511,1776975039110,-150.0,8e-05,2]
[421076512,1776975039120,-150.0,8e-05,2]
[421076513,1776975039130,-150.0,8e-05,2]
[421076514,1776975039140,-241.44878081,8e-05,2]
[421076515,1776975039150,-6800.0,8e-05,2]
[421076516,1776975039160,-500.0,8.017e-05,2]
[421076517,1776975039170,-500.0,8.017e-05,2]
[421076518,1776975039180,-500.0,8.017e-05,2]
[421076520,1776975039190,-500.0,8.017e-05,2]
[421076522,1776975039199,-643.0507432,8.017e-05,2]
[421076524,1776975039209,-500.0,8.017e-05,2]
[421076525,1776975039218,-356.55208806,8.017e-05,2]
[421076526,1776975039228,-267.60385811,8.017e-05,2]
[421076527,1776975039237,-348.4334017,8.017e-05,2]
[421076528,1776975039247,-500.0,8.017e-05,2]
[421076529,1776975039256,-500.0,8.017e-05,2]
[421076530,1776975039266,-500.0,8.017e-05,2]
[421076531,1776975039276,-500.0,8.017e-05,2]
[421076532,1776975039285,-579.23217549,8.017e-05,2]
[421076533,1776975039295,-500.0,8.017e-05,2]
[421076534,1776975039305,-500.0,8.017e-05,2]
[421076535,1776975039315,-500.0,8.017e-05,2]
[421076536,1776975039325,-500.0,8.017e-05,2]
[421076537,1776975039335,-500.0,8.017e-05,2]
[421076538,1776975039344,-500.0,8.017e-05,2]
[421076539,1776975039355,-500.0,8.017e-05,2]
[421076540,1776975039364,-500.0,8.017e-05,2]
[421076541,1776975039374,-500.0,8.017e-05,2]
[421076542,1776975039383,-409.62083112,8.017e-05,2]
[421076543,1776975039392,-275.38118748,8.017e-05,2]
[421076544,1776975039403,-500.0,8.017e-05,2]
[421076545,1776975039412,-500.0,8.017e-05,2]
[421076546,1776975039423,-500.0,8.017e-05,2]
[421076547,1776975039436,-500.0,8.017e-05,2]
[421076548,1776975039446,-500.0,8.017e-05,2]
[421076549,1776975039456,-500.0,8.017e-05,2]
[421076550,1776975039466,-500.0,8.017e-05,2]
[421076551,1776975039476,-130.19772725,8.017e-05,2]
[421076552,1776975039490,-369.80227275,8.017e-05,2]
[421076553,1776975039499,-500.0,8.017e-05,2]
[421076554,1776975039509,-500.0,8.017e-05,2]
[421076555,1776975039519,-500.0,8.017e-05,2]
[421076556,1776975039528,-500.0,8.017e-05,2]
[421076557,1776975039538,-500.0,8.017e-05,2]
[421076558,1776975039548,-500.0,8.017e-05,2]
[421076559,1776975039558,-327.90803974,8.017e-05,2]
[421076560,1776975039568,-500.0,8.017e-05,2]
[421076561,1776975039578,-500.0,8.017e-05,2]
[421076562,1776975039587,-500.0,8.017e-05,2]
[421076563,1776975039597,-500.0,8.017e-05,2]
[421076564,1776975039607,-500.0,8.017e-05,2]
[421076565,1776975039617,-500.0,8.017e-05,2]
[421076566,1776975039627,-500.0,8.017e-05,2]
[421076567,1776975039636,-500.0,8.017e-05,2]
[421076568,1776975039645,-500.0,8.017e-05,2]
[421076569,1776975039656,-500.0,8.017e-05,2]
[421076570,1776975039670,-250.0,8.017e-05,2]
[421076571,1776975039680,-40045.77401718,8.018e-05,2]
[421076572,1776975039693,-829.67010334,8.018e-05,2]
[421076573,1776975039710,-151931.2754162,8.018e-05,2]
[421076591,1776975043112,-2119.33276107,8.018e-05,2]
[421076592,1776975043165,-30479.10333516,8.018e-05,2]
[421076593,1776975043178,-19203.93637676,8.018e-05,2]
[421076594,1776975043219,-291.37653246,8.018e-05,2]
[421076595,1776975043273,-18433.9619083,8.018e-05,2]
[421076600,1776975045989,-23005.0,8.018e-05,2]
[421076601,1776975046043,-777.056514,8.018e-05,2]
[421076602,1776975046151,-427.46515504,8.018e-05,2]
[421076605,1776975066659,153.0,8.018e-05,3]
[421076606,1776975125470,154.0,8.018e-05,3]
[421076607,1776975185356,154.0,8.018e-05,3]
[421076608,1776975250827,154.0,8.018e-05,3]
[421076609,1776975305669,152.0,8.018e-05,3]
[421076610,1776975321079,-150.0,7.799e-05,2]
[421076611,1776975321101,-300.0,7.805e-05,2]
[421076612,1776975321122,-1200.0,7.806e-05,2]
[421076613,1776975321147,-1200.0,7.806e-05,2]
[421076614,1776975321181,-300.0,7.806e-05,2]
[421076615,1776975321204,-300.0,7.806e-05,2]
[421076616,1776975321228,-300.0,7.806e-05,2]
[421076617,1776975321250,-150.0,7.806e-05,2]
[421076618,1776975321271,-212.18009235,7.807e-05,2]
[421076619,1776975321292,-252.82013194,7.807e-05,2]
[421076620,1776975321319,-500.0,7.807e-05,2]
[421076621,1776975321346,-500.0,7.807e-05,2]
[421076622,1776975321372,-500.0,7.807e-05,2]
[421076623,1776975321396,-500.0,7.807e-05,2]
[421076624,1776975321422,-500.0,7.807e-05,2]
[421076625,1776975321448,-500.0,7.807e-05,2]
[421076626,1776975321473,-500.0,7.807e-05,2]
[421076627,1776975321498,-500.0,7.807e-05,2]
[421076628,1776975321524,-500.0,7.807e-05,2]
[421076629,1776975321548,-500.0,7.807e-05,2]
[421076630,1776975321574,-500.0,7.807e-05,2]
[421076631,1776975321599,-500.0,7.807e-05,2]
[421076632,1776975321624,-500.0,7.807e-05,2]
[421076633,1776975321650,-500.0,7.807e-05,2]
[421076634,1776975321680,-500.0,7.807e-05,2]
[421076635,1776975321706,-500.0,7.807e-05,2]
[421076636,1776975321731,-500.0,7.807e-05,2]
[421076637,1776975321757,-500.0,7.807e-05,2]
[421076638,1776975321782,-500.0,7.807e-05,2]
[421076639,1776975321808,-500.0,7.807e-05,2]
[421076640,1776975321833,-468.77866058,7.807e-05,2]
[421076641,1776975321859,-500.0,7.807e-05,2]
[421076642,1776975321884,-500.0,7.807e-05,2]
[421076643,1776975321910,-500.0,7.807e-05,2]
[421076644,1776975321935,-500.0,7.807e-05,2]
[421076645,1776975321962,-500.0,7.807e-05,2]
[421076646,1776975321987,-499.99999999,7.807e-05,2]
[421076647,1776975322009,-252.0,7.807e-05,2]
[421076648,1776975322040,-60653.22111514,7.808e-05,2]
[421076649,1776975605844,153.0,7.808e-05,3]
[421076650,1776975911443,153.0,7.808e-05,3]
[421076671,1776976232056,-882.42972454,7.608e-05,2]
[421076672,1776976232114,-94.49427546,7.608e-05,2]
[421076673,1776976232124,-405.50572454,7.608e-05,2]
[421076674,1776976232137,-729.0,7.608e-05,2]
[421076675,1776976232169,-1784.80487419,7.608e-05,2]
[421076676,1776976232228,-1009.25911231,7.608e-05,2]
[421076686,1776976232624,-1800.0,7.608e-05,2]
[421076687,1776976232636,-452.04785907,7.608e-05,2]
[421076688,1776976232647,-1200.0,7.608e-05,2]
[421076689,1776976232658,-25182.18858594,7.608e-05,2]
[421076690,1776976232674,-284659.59149857,7.608e-05,2]
[421076691,1776976232686,-4803.81598798,7.608e-05,2]
[421076692,1776976232696,-7018.3564003,7.608e-05,2]
[421076702,1776976238591,-20197.1028935,7.608e-05,2]
[421076703,1776976238663,-449.3404125,7.608e-05,2]
[421076704,1776976238675,-10339.24356323,7.608e-05,2]
[421076705,1776976238686,-6566.66693677,7.608e-05,2]
[421076706,1776976238697,-4094.26121667,7.608e-05,2]
[421076707,1776976238720,-265.712551,7.608e-05,2]
[421076708,1776976238732,-2851.21217869,7.608e-05,2]
[421076709,1776976238743,-465.10799685,7.608e-05,2]
[421076710,1776976238755,-76165.53357054,7.608e-05,2]
[421076711,1776976238767,-48993.48432967,7.608e-05,2]
[421076712,1776976238779,-829.67010334,7.608e-05,2]
[421076713,1776976238794,-9029.37530465,7.608e-05,2]
[421076725,1776976246265,-6915.23733834,7.608e-05,2]
[421076728,1776976247152,-3700.0,7.608e-05,2]
[421076730,1776976247172,-8329.77429792,7.608e-05,2]
[421076731,1776976247185,-2528.300001,7.608e-05,2]
[421076732,1776976247202,-900.49808656,7.608e-05,2]
[421076733,1776976247215,-295.44116587,7.608e-05,2]
[421076734,1776976247231,-500.0,7.608e-05,2]
[421076735,1776976247245,-4545.95952329,7.608e-05,2]
[421076736,1776976247274,-4461.36695267,7.608e-05,2]
[421076738,1776976247330,-17533.17424791,7.608e-05,2]
[421076739,1776976247342,-1607.59263891,7.608e-05,2]
[421076741,1776976468524,155.0,8.477e-05,5]
[421076742,1776976475249,177.0,7.608e-05,3]
[421076743,1776977072398,151.0,8.442e-05,5]
[421076764,1776977432335,-300.0,7.505e-05,2]
[421076765,1776977432345,-250.0,7.506e-05,2]
[421076766,1776977432356,-150.0,7.506e-05,2]
[421076767,1776977432365,-300.0,7.506e-05,2]
[421076768,1776977432374,-134.09669,7.506e-05,2]
[421076769,1776977432393,-746.77491963,7.506e-05,2]
[421076770,1776977432406,-319.12839037,7.506e-05,2]
[421076771,1776977432415,-300.0,7.506e-05,2]
[421076772,1776977432425,-535.26075902,7.507e-05,2]
[421076773,1776977432436,-450.0,7.507e-05,2]
[421076774,1776977432448,-4104.45784098,7.507e-05,2]
[421076775,1776977432459,-97635.6783,7.507e-05,2]
[421076776,1776977432469,-3318.467,7.507e-05,2]
[421076777,1776977432478,-775.2585,7.589e-05,2]
[421076778,1776977432487,-46696.69458326,7.597e-05,2]
[421076779,1776977432496,-10430.93820773,7.597e-05,2]
[421076780,1776977432505,-4914.209,7.597e-05,2]
[421076781,1776977432514,-410.798,7.597e-05,2]
[421076782,1776977432523,-151.0,7.605e-05,2]
[421076783,1776977432533,-151.0,7.605e-05,2]
[421076784,1776977432542,-591.35,7.607e-05,2]
[421076785,1776977432552,-500.0,7.726e-05,2]
[421076786,1776977432561,-500.0,7.753e-05,2]
[421076787,1776977432571,-500.0,7.808e-05,2]
[421076788,1776977432580,-591.35,7.881e-05,2]
[421076789,1776977432589,-288.80740356,8.018e-05,2]
[421076790,1776977432599,-197.48,8.048e-05,2]
[421076791,1776977432608,-269.0,8.061e-05,2]
[421076792,1776977432618,-292.36368211,8.075e-05,2]
[421076793,1776977432627,-501.0,8.11e-05,2]
[421076794,1776977432636,-591.35,8.155e-05,2]
[421076795,1776977432646,-889.446869,8.178e-05,2]
[421076796,1776977432655,-500.0,8.219e-05,2]
[421076797,1776977432665,-36292.0,8.219e-05,2]
[421076798,1776977432674,-280.0,8.219e-05,2]